{"text_format":"1","workbook":"xlsx","n_sheets":4,"sheets":["Forside","Vurderingsverktøy","Resultat","Bakgrunnsverdier"],"not_rendered":{"charts":2,"images":3,"macros":1,"external_links":0,"defined_names":24,"comments":0,"pivot_tables":0},"unopened":[],"bounds":{"document_bytes":16777216,"sheet_cells":100000,"rows_first":2000,"rows_last":500,"rows_between":2000,"halvings":0,"cell_chars":16384,"cell_head_chars":4096},"cells_cut":0,"cells_raw":0,"read":"whole","date_system":"1900"}

{"sheet":"Forside","index":0,"n_rows":0,"n_cols":0,"rows_kept":0,"cut":false,"hidden":false,"merged":[]}

{"sheet":"Vurderingsverktøy","index":1,"n_rows":93,"n_cols":28,"rows_kept":93,"cut":false,"hidden":false,"merged":[]}
[]
[]
[]
[]
[]
[]
[]
[]
[]
[null,"Dato:"]
[]
[null,"Navn på praksis:"]
[]
[null,"Kriterium 1: Beskrevet"]
[]
[]
[null,"Nr.","Spørsmål","Velg fra liste"]
[null,1,"Er det mulig å forstå hva praksisen går ut på ved å lese navn på praksisen og kort innledning om praksisen?",null,null,null,null,null,null,null,null,null,null,null,null,null,null,null,null,null,null,null,null,{"$f":"IF(D18<2,0,D18)","v":0},null,{"$f":"IF(D18=1,\"\",(IF(D18=2,\"\",IF(D18=3,0,IF(D18=4,0.5,IF(D18=5,1,\"\"))))))","v":""}]
[null,2,"Beskrives behovet/utfordringen som praksisen skal forbedre?",null,null,null,null,null,null,null,null,null,null,null,null,null,null,null,null,null,null,null,null,0,null,""]
[null,3,"Beskrives metode/teori som ligger bak praksisen?",null,null,null,null,null,null,null,null,null,null,null,null,null,null,null,null,null,null,null,null,0,null,""]
[null,4,"Beskrives forløp og aktiviteter i praksisen?",null,null,null,null,null,null,null,null,null,null,null,null,null,null,null,null,null,null,null,null,0,null,""]
[null,5,"Beskrives målene/ønskede resultater for praksisen?",null,null,null,null,null,null,null,null,null,null,null,null,null,null,null,null,null,null,null,null,0,null,""]
[null,"5.1","Er målene i overensstemmelse med målsetninger utarbeidet av myndighetene (i handlingsplan, statsbudsjett, tildelingsbrev, målkrav, el.)?",null,null,null,null,null,null,null,null,null,null,null,null,null,null,null,null,null,null,null,null,{"$f":"IF(AND(D23=1,X22>3),0,X22)","v":0},null,""]
[null,"5.2","Er målene konkrete?",null,null,null,null,null,null,null,null,null,null,null,null,null,null,null,null,null,null,null,null,{"$f":"IF(AND(D24=1,X23>3),0,X23)","v":0},null,{"$f":"IF(D24=1,\"\",(IF(D24=2,\"\",IF(D24=3,0,IF(D24=4,0.5,IF(D24=5,1,\"\"))))))","v":""}]
[null,"5.3","Finnes en tidsramme for måloppnåelse?",null,null,null,null,null,null,null,null,null,null,null,null,null,null,null,null,null,null,null,null,0,null,""]
[null,"6","Beskrives hvilke aktører som skal utføre praksisen? Eventuelle samarbeidspartnere. ",null,null,null,null,null,null,null,null,null,null,null,null,null,null,null,null,null,null,null,null,{"$f":"IF(D26<2,0,D26)","v":0},null,""]
[null,"6.1","Er behovet for faglige/personlige kompetanser hos medarbeiderne beskrevet?",null,null,null,null,null,null,null,null,null,null,null,null,null,null,null,null,null,null,null,null,{"$f":"IF(AND(D27=1,X26>3),0,X26)","v":0},null,""]
[null,"7","Beskrives målgruppen for praksisen? ",null,null,null,null,null,null,null,null,null,null,null,null,null,null,null,null,null,null,null,null,0,null,""]
[null,"7.1","Finnes tydelige kriterier for hvem som er i målgruppen?",null,null,null,null,null,null,null,null,null,null,null,null,null,null,null,null,null,null,null,null,{"$f":"IF(AND(D29=1,X28>3),0,X28)","v":0},null,""]
[null,"7.2","Finnes verktøy for å avgjøre om en person er i målgruppen?",null,null,null,null,null,null,null,null,null,null,null,null,null,null,null,null,null,null,null,null,0,null,""]
[null,"7.3","Finnes strategi for rekruttering av deltakere?",null,null,null,null,null,null,null,null,null,null,null,null,null,null,null,null,null,null,null,null,0,null,""]
[null,"8","Beskrives brukerperspektivet (brukeren i praksisen)? ",null,null,null,null,null,null,null,null,null,null,null,null,null,null,null,null,null,null,null,null,0,null,""]
[null,"8.1","Tilrettelegges praksis med utgangspunkt i kunnskap om brukerens ressurser og behov?",null,null,null,null,null,null,null,null,null,null,null,null,null,null,null,null,null,null,null,null,{"$f":"IF(AND(D33=1,X32>3),0,X32)","v":0},null,""]
[null,"8.2","Involveres brukeren (og pårørende) i utformingen av innsatsen rettet mot brukeren?",null,null,null,null,null,null,null,null,null,null,null,null,null,null,null,null,null,null,null,null,0,null,""]
[null,"8.3","Blir brukerens tilfredshet målt og tatt i betraktning?",null,null,null,null,null,null,null,null,null,null,null,null,null,null,null,null,null,null,null,null,0,null,""]
[null,"8.4","Beskrives brukerens motivasjon for å delta?",null,null,null,null,null,null,null,null,null,null,null,null,null,null,null,null,null,null,null,null,0,null,""]
[null,"9","Er det beskrevet hva som er viktige rammebetingelser for implementering av praksisen? (Økonomi, organisering, lokale forhold)",null,null,null,null,null,null,null,null,null,null,null,null,null,null,null,null,null,null,null,null,{"$f":"IF(D37<2,0,D37)","v":0},null,""]
[]
[null,"Delscore:",null,{"$f":"IF(X39=0,AVERAGE(Z18:Z37),\"Valg mangler\")","v":"Valg mangler"},null,null,null,null,null,null,null,null,null,null,null,null,null,null,null,null,null,null,null,{"$f":"COUNTIF(X18:X37,0)","v":20},{"$f":"ISNUMBER(svar1)","v":false},{"$f":"AVERAGE(Z18:Z37)","v":{"$error":"#DIV/0!"}},null,{"$f":"Z39=D39","v":{"$error":"#DIV/0!"}}]
[]
[null,"Kommentarer til element 1:"]
[]
[null,"Kriterium 2: Resultater"]
[]
[]
[null,"Nr.","Spørsmål","Velg fra liste"]
[null,10,"Innebærer praksisen en måling av brukers utvikling på de målene som er satt for praksisen, og som kan vise til forbedring av resultater?",null,null,null,null,null,null,null,null,null,null,null,null,null,null,null,null,null,null,null,null,{"$f":"IF(D47<2,0,D47)","v":0},null,{"$f":"IF(D47=1,\"\",(IF(D47=2,\"\",IF(D47=3,0,IF(D47=4,1,\"\")))))","v":""}]
[null,11,"Finnes det studier som viser til positiv virkning av (deler av) praksisen? (eksperiment, enkeltstudier eller systematiske oversikter, kvalitetsvurderte eller ikke)",null,null,null,null,null,null,null,null,null,null,null,null,null,null,null,null,null,null,null,null,{"$f":"IF(D48<2,0,D48)","v":0},null,""]
[null,"11.1","Finnes det studie(r) gjennomført i Norge eller Norden som viser til positiv virkning av praksisen?",null,null,null,null,null,null,null,null,null,null,null,null,null,null,null,null,null,null,null,null,{"$f":"IF(AND(D49=1,X48>3),0,X48)","v":0},null,""]
[null,12,"Er det undersøkt for eventuelle bieffekter av praksisen, som ikke viser tydelige negative bieffekter ved praksisen?",null,null,null,null,null,null,null,null,null,null,null,null,null,null,null,null,null,null,null,null,{"$f":"IF(D50<2,0,D50)","v":0},null,""]
[null,13,"Finnes positive vurderinger av praksisen og måloppnåelse gjort av fagpersoner/personer som arbeider med praksisen?",null,null,null,null,null,null,null,null,null,null,null,null,null,null,null,null,null,null,null,null,{"$f":"IF(D51<2,0,D51)","v":0},null,""]
[null,14,"Finnes positive brukervurderinger av praksisen og måloppnåelse?",null,null,null,null,null,null,null,null,null,null,null,null,null,null,null,null,null,null,null,null,{"$f":"IF(D52<2,0,D52)","v":0},null,""]
[]
[null,"Delscore:",null,{"$f":"IF(X54=0,AVERAGE(Z48:Z52),\"Valg mangler\")","v":"Valg mangler"},null,null,null,null,null,null,null,null,null,null,null,null,null,null,null,null,null,null,null,{"$f":"COUNTIF(X47:X52,0)","v":6},{"$f":"ISNUMBER(svar2)","v":false}]
[]
[null,"Kommentarer til element 2:"]
[]
[null,"Kriterium 3: Økonomi/ressurser"]
[]
[]
[null,"Nr.","Spørsmål","Velg fra liste"]
[null,14,"Er nødvendige ressurser ved praksisen kjent og gjort rede for? (utgifter til medarbeiderdrift, drift av teknologi, verktøy, utdanning, øvrig)",null,null,null,null,null,null,null,null,null,null,null,null,null,null,null,null,null,null,null,null,{"$f":"IF(D62<2,0,D62)","v":0},null,{"$f":"IF(D62=1,\"\",(IF(D62=2,\"\",IF(D62=3,0,IF(D62=4,1,\"\")))))","v":""}]
[null,15,"Finnes budsjettforslag/plan for finansiering fra tiltakseier? ",null,null,null,null,null,null,null,null,null,null,null,null,null,null,null,null,null,null,null,null,{"$f":"IF(D63<2,0,D63)","v":0},null,{"$f":"IF(D63=1,\"\",(IF(D63=2,\"\",IF(D63=3,0,IF(D63=4,1,\"\")))))","v":""}]
[null,16,"Er kostnadene for praksisen på samme nivå som kostnader for liknende tiltak? ",null,null,null,null,null,null,null,null,null,null,null,null,null,null,null,null,null,null,null,null,{"$f":"IF(D64<2,0,D64)","v":0},null,""]
[null,17,"Finnes norske eller internasjonale vurderinger som viser at praksisen er verdt ressursene (samfunnsøkonomisk lønnsom)? ",null,null,null,null,null,null,null,null,null,null,null,null,null,null,null,null,null,null,null,null,{"$f":"IF(D65<2,0,D65)","v":0},null,""]
[]
[null,"Delscore:",null,{"$f":"IF(X67=0,AVERAGE(Z62:Z65),\"Valg mangler\")","v":"Valg mangler"},null,null,null,null,null,null,null,null,null,null,null,null,null,null,null,null,null,null,null,{"$f":"COUNTIF(X62:X65,0)","v":4},{"$f":"ISNUMBER(svar3)","v":false}]
[]
[null,"Kommentarer til element 3:"]
[]
[null,"Kriterium 4: Overførbarhet"]
[]
[null,"Nr.","Spørsmål","Velg fra liste"]
[null,18,"Er det realistisk å forvente at andre kommuner kan implementere praksisen? (særlig med tanke på nødvendige rammebetingelser)",null,null,null,null,null,null,null,null,null,null,null,null,null,null,null,null,null,null,null,null,{"$f":"IF(D74<2,0,D74)","v":0},null,{"$f":"IF(D74=1,\"\",(IF(D74=2,\"\",IF(D74=3,0,IF(D74=4,1,\"\")))))","v":""}]
[null,19,"Er praksisen implementert med suksess flere steder? ",null,null,null,null,null,null,null,null,null,null,null,null,null,null,null,null,null,null,null,null,0,null,""]
[null,20,"Finnes et system for å fremme god implementering ved overføring?",null,null,null,null,null,null,null,null,null,null,null,null,null,null,null,null,null,null,null,null,0,null,""]
[null,"20.1","Finnes rutiner for opplæring av medarbeidere i forbindelse med implementering av praksisen?",null,null,null,null,null,null,null,null,null,null,null,null,null,null,null,null,null,null,null,null,{"$f":"IF(AND(D77=1,X76>3),0,X76)","v":0},null,""]
[null,"20.2","Krever praksisen spesielle kompetanser/kvalifikasjoner hos medarbeidere som skal utføre praksisen?",null,null,null,null,null,null,null,null,null,null,null,null,null,null,null,null,null,null,null,null,{"$f":"IF(AND(D78=1,X77>3),0,X77)","v":0},null,""]
[null,"20.3","Finnes materiell for utøvere av praksisen? (implementeringsmanualer, prosessjekklister, ol.)",null,null,null,null,null,null,null,null,null,null,null,null,null,null,null,null,null,null,null,null,{"$f":"IF(AND(D79=1,X78>3),0,X78)","v":0},null,""]
[]
[null,"Delscore:",null,{"$f":"IF(X81=0,AVERAGE(Z74:Z79),\"Valg mangler\")","v":"Valg mangler"},null,null,null,null,null,null,null,null,null,null,null,null,null,null,null,null,null,null,null,{"$f":"COUNTIF(X74:X79,0)","v":6},{"$f":"ISNUMBER(svar4)","v":false}]
[]
[null,"Kommentarer til element 4:"]
[]
[]
[]
[]
[]
[]
[]
[]
[]
[null,"Samlet score (snitt av alle delsummene)",null,{"$f":"IF(AND(svar1_sjekk=TRUE,svar2_sjekk=TRUE,svar3_sjekk=TRUE,svar4_sjekk=TRUE),(AVERAGE(D81,D67,D54,D39)),\"Valg mangler\")","v":"Valg mangler"}]

{"sheet":"Resultat","index":2,"n_rows":93,"n_cols":2,"rows_kept":93,"cut":false,"hidden":false,"merged":[[1,0,1,1]]}
[]
[{"$f":"\"Samlet resultat for \" &Vurderingsverktøy!C12","v":"Samlet resultat for "}]
[null,"Score:"]
["Samlet score for tiltaket",{"$f":"Vurderingsverktøy!D93","v":"Valg mangler"}]
[]
["Kriterium","Score:"]
["Kriterium 1: Beskrevet",{"$f":"Vurderingsverktøy!D39","v":"Valg mangler"}]
[""]
["Kriterium 2: Resultater",{"$f":"Vurderingsverktøy!D54","v":"Valg mangler"}]
[""]
["Kriterium 3: Økonomi/ressurser",{"$f":"Vurderingsverktøy!D67","v":"Valg mangler"}]
[""]
["Kriterium 4: Overførbarhet",{"$f":"Vurderingsverktøy!D81","v":"Valg mangler"}]
[""]
[]
[]
[]
[]
[]
[]
[]
[]
[]
[]
[]
[]
[]
[]
[]
[]
[]
[]
[]
[]
[]
[]
[]
[]
[]
[]
[]
[]
[]
[]
[]
["Figurer"]
[]
[]
[]
[]
[]
[]
[]
[]
[]
[]
[]
[]
[]
[]
[]
[]
[]
[]
[]
[]
[]
[]
[]
[]
[]
[]
[]
[]
[]
[]
[]
[]
[]
[]
[]
[]
[]
[]
[]
[]
[]
[]
[]
[]
[]
[]
["Figuren går fra 0 % i senter av figuren og ut til 100% i kantene"]

{"sheet":"Bakgrunnsverdier","index":3,"n_rows":16,"n_cols":20,"rows_kept":16,"cut":false,"hidden":true,"merged":[]}
[]
[]
[]
[]
[]
[]
[]
[]
[]
[null,null,null,null,null,null,null,null,null,null,null,null,null,null,null,null,null,"valg","verdi","omkodet"]
[null,null,null,null,null,null,null,null,null,null,null,null,"valg","verdi","omkodet",null,null,null,1]
[null,null,null,null,null,null,null,null,null,null,null,null,null,1,null,null,null,"Ikke relevant",2," = 0"]
[null,null,null,null,null,null,null,null,null,null,null,null,"Ikke relevant",2," = 0",null,null,"Nei",3," = 0"]
[null,null,null,null,null,null,null,null,null,null,null,null,"Ikke beskrevet",3," = 0",null,null,"Ja",4," = 1"]
[null,null,null,null,null,null,null,null,null,null,null,null,"Noe beskrevet",4," = 0,5"]
[null,null,null,null,null,null,null,null,null,null,null,null,"Godt beskrevet",5," = 1"]